bitfinex/quotes_SOLUSD_20240708
["timestamp","ask_amount","ask_price","bid_price","bid_amount"]
[1720413159116,100.0,132.14,132.03,25.90361531]
[1720413159283,100.0,132.14,132.04,20.17]
[1720413159680,100.0,132.12,132.04,20.17]
[1720413160891,100.0,132.13,132.04,20.17]
[1720413161091,100.8482938,132.15,132.04,20.17]
[1720413161313,100.8482938,132.15,132.05,55.1219]
[1720413161511,100.8482938,132.15,132.06,20.17]
[1720413161512,100.0,132.13,132.06,20.17]
[1720413161897,0.8482938,132.15,132.07,6.598]
[1720413162093,0.8482938,132.15,132.09,15.2973]
[1720413162293,0.8482938,132.15,132.1,0.17]
[1720413162599,0.8482938,132.15,132.1,20.17]
[1720413164216,0.2,132.19,132.1,20.17]
[1720413164999,0.2,132.19,132.11,22.1678]
[1720413165302,0.2,132.19,132.13,39.51]
[1720413165508,0.2,132.19,132.14,20.0]
[1720413166090,0.2,132.19,132.15,0.69080275]
[1720413166416,0.04499469,132.22,132.16,15.7438]
[1720413166710,0.04499469,132.22,132.17,20.0]
[1720413167015,0.04499469,132.22,132.16,15.5738]
[1720413167225,100.0,132.21,132.16,15.5738]
[1720413167517,0.04499469,132.22,132.12,16.3334]
[1720413168095,100.0,132.21,132.12,16.3334]
[1720413168294,100.0,132.21,132.13,1.07904933]
[1720413168508,100.0,132.18,132.12,16.3334]
[1720413169311,100.0,132.15,132.12,16.3334]
[1720413169630,100.0,132.13,132.08,16.3334]
[1720413170900,100.0,132.15,132.08,16.3334]
[1720413171798,100.0,132.13,132.08,16.3334]
[1720413172510,100.0,132.16,132.08,16.3334]
[1720413173227,100.0,132.19,132.09,20.0]
[1720413173531,100.0,132.19,132.09,20.17]
[1720413174408,100.0,132.21,132.09,20.17]
[1720413174799,0.04499469,132.22,132.1,15.7685]
[1720413175004,0.04499469,132.22,132.11,20.95194419]
[1720413175324,0.04499469,132.22,132.11,43.12]
[1720413175535,100.0,132.21,132.13,6.3448]
[1720413175704,100.0,132.21,132.14,20.17]
[1720413175899,0.04499469,132.22,132.14,20.17]
[1720413176533,100.0,132.2,132.14,20.0]
[1720413176696,100.04499469,132.22,132.14,20.0]
[1720413177097,100.0,132.19,132.14,20.0]
[1720413177323,0.04499469,132.22,132.14,20.0]
[1720413177949,0.04499469,132.22,132.15,0.17]
[1720413178630,0.04499469,132.22,132.14,20.0]
[1720413178631,100.04499469,132.22,132.14,20.0]
[1720413178799,100.0,132.2,132.14,20.0]
[1720413179000,0.04499469,132.22,132.14,20.0]
[1720413179522,100.0,132.17,132.13,6.3448]
[1720413179753,100.0,132.17,132.1,55.2785]
[1720413180029,100.0,132.17,132.1,21.68305856]
[1720413180234,100.0,132.17,132.1,15.7685]
[1720413180421,100.0,132.13,132.1,15.7685]
[1720413181130,100.0,132.16,132.1,15.7685]
[1720413181425,100.0,132.13,132.06,15.47]
[1720413181835,100.0,132.11,132.06,15.47]
[1720413182034,100.0,132.18,132.06,15.47]
[1720413182333,100.0,132.11,132.06,15.47]
[1720413182701,100.0,132.14,132.06,15.47]
[1720413182903,6.4117,132.2,132.06,15.47]
[1720413182904,100.0,132.11,132.06,15.47]
[1720413183331,100.0,132.09,132.06,15.47]
[1720413183543,100.0,132.11,132.06,15.47]
[1720413184041,100.0,132.14,132.06,15.47]
[1720413184238,100.0,132.16,132.06,15.47]
[1720413184545,100.0,132.16,132.07,20.0]
[1720413184917,100.0,132.18,132.08,0.17]
[1720413185520,100.0,132.15,132.08,0.17]
[1720413185727,100.0,132.15,132.07,20.0]
[1720413185728,100.0,132.12,132.07,20.0]
[1720413186633,100.0,132.15,132.07,20.0]
[1720413187537,100.0,132.17,132.07,20.0]
[1720413187728,100.0,132.17,132.08,0.17]
[1720413188046,100.0,132.2,132.09,21.5707]
[1720413188250,100.04499469,132.22,132.1,20.17]
[1720413188549,100.0,132.18,132.1,20.17]
[1720413188744,100.0,132.21,132.1,20.17]
[1720413189344,0.04499469,132.22,132.12,22.79]
[1720413189535,0.04499469,132.22,132.15,15.4356]
[1720413189741,0.04499469,132.22,132.16,20.17]
[1720413190857,100.04499469,132.22,132.16,20.17]
[1720413192747,0.04499469,132.22,132.17,6.1721]
[1720413192935,0.8482938,132.28,132.19,16.2897]
[1720413193131,0.8482938,132.28,132.2,20.17]
[1720413193534,100.0,132.25,132.2,20.17]
[1720413193840,100.0,132.25,132.2,20.0]
[1720413194651,0.8482938,132.28,132.2,20.0]
[1720413194652,100.0,132.23,132.2,20.0]
[1720413195227,100.0,132.27,132.2,20.0]
[1720413195432,0.8482938,132.28,132.2,20.0]
[1720413195433,100.8482938,132.28,132.2,20.0]
[1720413195935,100.0,132.22,132.2,20.0]
[1720413196251,0.8482938,132.28,132.19,16.2897]
[1720413196252,100.0,132.2,132.19,16.2897]
[1720413196648,100.0,132.2,132.17,6.1721]
[1720413196649,100.0,132.2,132.08,21.4851]
[1720413196852,100.0,132.18,132.08,53.61555012]
[1720413197051,100.0,132.18,132.09,39.51]
[1720413197850,100.0,132.15,132.09,39.51]
[1720413198258,100.0,132.19,132.09,39.51]
[1720413198426,100.0,132.23,132.1,22.79]
[1720413198631,100.0,132.23,132.13,68.3975]
[1720413198841,0.8482938,132.28,132.13,68.3975]
[1720413198842,100.0,132.26,132.13,68.3975]
[1720413199049,0.8482938,132.28,132.14,20.17]
[1720413199050,100.0,132.2,132.14,20.17]
[1720413199241,100.0,132.22,132.14,20.17]
[1720413200458,100.0,132.2,132.14,20.17]
[1720413200832,100.0,132.22,132.14,20.17]
[1720413201035,100.0,132.22,132.14,42.96]
[1720413201244,0.8482938,132.28,132.15,15.3876]
[1720413201454,100.0,132.27,132.16,20.17]
[1720413201957,100.0,132.27,132.17,45.6075]
[1720413202148,100.0,132.27,132.18,20.17]
[1720413202542,0.8482938,132.28,132.18,20.17]
[1720413202739,100.0,132.27,132.18,20.17]
[1720413203059,100.0,132.25,132.18,20.17]
[1720413203571,100.0,132.23,132.18,20.17]
[1720413203760,100.0,132.23,132.18,20.0]
[1720413203939,0.8482938,132.28,132.18,20.0]
[1720413203940,100.0,132.27,132.18,20.0]
[1720413204549,100.0,132.27,132.19,0.17]
[1720413204749,0.8482938,132.28,132.19,1.68146676]
[1720413204940,0.8482938,132.28,132.2,16.0854]
[1720413205142,0.8482938,132.28,132.21,20.17]
[1720413206361,100.2,132.29,132.22,45.9252]
[1720413206675,100.2,132.29,132.23,20.17]
[1720413207277,100.0,132.27,132.23,20.17]
[1720413207449,100.2,132.29,132.23,20.17]
[1720413208840,100.0,132.27,132.22,23.1352]
[1720413209366,100.0,132.24,132.22,23.1352]
[1720413210167,100.0,132.24,132.22,16.6273]
[1720413210473,100.0,132.21,132.18,22.8377]
[1720413211346,0.2,132.29,132.18,22.8377]
[1720413211347,100.0,132.25,132.18,22.8377]
[1720413212271,100.0,132.23,132.19,20.0]
[1720413212569,100.0,132.21,132.19,20.0]
[1720413212867,100.0,132.23,132.19,20.0]
[1720413213050,0.2,132.29,132.19,20.0]
[1720413213051,100.0,132.26,132.19,20.0]
[1720413213661,100.0,132.28,132.19,20.0]
[1720413213969,100.0,132.28,132.19,42.79]
[1720413214356,100.0,132.28,132.2,0.17]
[1720413214559,0.2,132.29,132.21,38.0331]
[1720413214797,0.2,132.29,132.22,20.17]
[1720413215160,0.2,132.29,132.22,20.0]
[1720413215360,100.0,132.28,132.22,20.0]
[1720413215667,100.0,132.28,132.21,15.2431]
[1720413216370,100.0,132.28,132.21,38.0331]
[1720413216677,100.0,132.33,132.23,62.3]
[1720413217182,100.0,132.33,132.24,20.17]
[1720413217351,100.0,132.31,132.24,20.17]
[1720413217656,100.0,132.34,132.24,20.17]
[1720413218466,100.0,132.34,132.25,22.79]
[1720413218645,100.0,132.34,132.26,20.17]
[1720413218853,100.0,132.36,132.26,20.17]
[1720413219276,100.0,132.36,132.27,20.0]
[1720413219452,100.0,132.36,132.28,0.17]
[1720413219653,100.0,132.36,132.26,0.17]
[1720413219855,100.0,132.32,132.26,0.17]
[1720413220377,100.0,132.32,132.25,0.17]
[1720413220884,100.0,132.34,132.25,0.17]
[1720413221121,6.5812,132.4,132.25,0.17]
[1720413221122,100.0,132.37,132.26,15.4071]
[1720413221297,100.0,132.37,132.27,26.2109]
[1720413221606,100.0,132.37,132.27,65.7209]
[1720413221986,100.0,132.37,132.28,22.79]
[1720413222188,100.8482938,132.41,132.29,20.17]
[1720413222420,100.8482938,132.41,132.3,15.1934]
[1720413222717,100.8482938,132.41,132.31,20.17]
[1720413223275,0.8482938,132.41,132.33,16.572]
[1720413223486,0.8482938,132.41,132.34,20.17]
[1720413224603,100.0,132.39,132.34,20.17]
[1720413224825,0.8482938,132.41,132.35,0.17]
[1720413224993,0.8482938,132.41,132.34,20.0]
[1720413225390,100.0,132.38,132.34,20.0]
[1720413225793,0.8482938,132.41,132.35,0.17]
[1720413226192,100.0,132.4,132.34,20.0]
[1720413227193,0.8482938,132.41,132.34,20.0]
[1720413227601,0.8482938,132.41,132.35,0.17]
[1720413228631,0.8482938,132.41,132.37,15.286]
[1720413228792,0.8482938,132.41,132.38,20.17]
[1720413229424,0.8482938,132.41,132.38,20.0]
[1720413229926,0.8482938,132.41,132.37,15.286]
[1720413231339,100.0,132.4,132.37,15.286]
[1720413231901,0.8482938,132.41,132.37,15.286]
[1720413232500,100.0,132.46,132.38,20.17]
[1720413232828,100.0,132.44,132.38,20.17]
[1720413233015,100.0,132.44,132.38,20.0]
[1720413233319,100.0,132.42,132.38,20.0]
[1720413233518,100.0,132.46,132.38,20.0]
[1720413234329,0.1,132.39,132.38,20.0]
[1720413234912,100.0,132.46,132.38,20.0]
[1720413235121,100.0,132.46,132.39,0.17]
[1720413235608,100.0,132.46,132.4,6.2358]
[1720413235815,59.814,132.47,132.41,0.17]
[1720413236212,59.814,132.47,132.41,20.17]
[1720413236730,100.0,132.45,132.41,20.0]
[1720413237030,58.314,132.47,132.41,20.0]
[1720413237600,0.1,132.49,132.42,16.421]
[1720413237902,0.1,132.49,132.43,20.0]
[1720413238328,100.0,132.47,132.43,20.0]
[1720413239010,100.0,132.47,132.42,16.421]
[1720413239339,0.1,132.49,132.42,16.421]
[1720413240203,100.0,132.48,132.43,20.0]
[1720413240400,100.0,132.46,132.42,16.421]
[1720413241015,6.6519,132.49,132.42,16.421]
[1720413241239,100.0,132.46,132.42,16.421]
[1720413241837,100.0,132.44,132.38,16.4006]
[1720413242128,100.0,132.4,132.34,16.4006]
[1720413245021,100.0,132.34,132.28,16.2599]
[1720413245222,100.0,132.3,132.22,16.2599]
[1720413246246,100.0,132.34,132.25,6.4289]
[1720413246445,100.0,132.38,132.25,6.4289]
[1720413246916,100.0,132.36,132.25,6.4289]
[1720413247322,100.0,132.38,132.26,15.9311]
[1720413247523,100.0,132.38,132.27,42.79]
[1720413247723,100.0,132.4,132.29,22.79]
[1720413247922,23.30091271,132.49,132.32,62.3]
[1720413247923,100.0,132.47,132.32,62.3]
[1720413248124,100.0,132.47,132.33,20.17]
[1720413248347,100.0,132.41,132.33,20.17]
[1720413248556,6.6284,132.49,132.33,20.0]
[1720413248557,100.0,132.42,132.33,20.0]
[1720413248859,100.0,132.36,132.3,22.2169]
[1720413249143,100.0,132.4,132.3,22.2169]
[1720413249444,39.51,132.48,132.3,22.2169]
[1720413249445,100.0,132.38,132.3,22.2169]
[1720413249821,6.6284,132.49,132.31,22.79]
[1720413250020,100.0,132.47,132.31,22.79]
[1720413250232,100.0,132.47,132.32,20.17]
[1720413250448,100.0,132.47,132.32,0.17]
[1720413250936,100.0,132.43,132.32,0.17]
[1720413251142,100.0,132.4,132.32,0.17]
[1720413251350,100.0,132.42,132.32,0.17]
[1720413251729,100.0,132.42,132.31,20.0]
[1720413251936,100.0,132.42,132.3,22.2169]
[1720413252251,100.0,132.4,132.3,22.2169]
[1720413252441,100.0,132.38,132.3,22.2169]
[1720413253745,100.0,132.36,132.3,22.2169]
[1720413253954,100.0,132.38,132.3,22.2169]
[1720413254156,100.0,132.36,132.3,22.2169]
[1720413254357,100.0,132.36,132.31,20.0]
[1720413254533,100.0,132.44,132.31,20.0]
[1720413254882,100.0,132.36,132.31,20.0]
[1720413255230,100.0,132.38,132.31,20.0]
[1720413255548,100.0,132.37,132.31,20.0]
[1720413256051,100.0,132.41,132.32,0.17]
[1720413256525,100.0,132.39,132.31,20.0]
[1720413256721,6.6244,132.45,132.31,20.0]
[1720413256722,100.0,132.37,132.31,20.0]
[1720413258145,100.0,132.41,132.31,20.0]
[1720413258344,100.0,132.39,132.31,20.0]
[1720413260253,100.0,132.41,132.31,20.0]
[1720413260448,100.0,132.39,132.31,20.0]
[1720413262474,100.0,132.39,132.3,22.2169]
[1720413262660,100.0,132.35,132.3,15.9311]
[1720413262859,100.0,132.33,132.26,22.3193]
[1720413263066,100.0,132.29,132.26,22.3193]
[1720413264077,100.0,132.29,132.26,16.2443]
[1720413264271,100.0,132.32,132.26,16.2443]
[1720413264477,100.0,132.3,132.27,20.0]
[1720413264972,100.0,132.33,132.27,20.0]
[1720413265159,100.0,132.31,132.26,16.2443]
[1720413266277,100.0,132.36,132.26,16.2443]
[1720413266458,100.0,132.32,132.27,20.0]
[1720413266875,3.89713902,132.46,132.27,20.0]
[1720413266876,100.0,132.36,132.27,20.0]
[1720413267181,100.0,132.38,132.28,6.2329]
[1720413267384,54.51,132.48,132.29,35.7204]
[1720413267385,100.0,132.4,132.29,35.7204]
[1720413268081,6.2704,132.45,132.29,35.5504]
[1720413268082,100.0,132.38,132.29,35.5504]
[1720413268380,100.0,132.38,132.3,0.17]
[1720413268552,100.0,132.4,132.3,0.17]
[1720413269671,100.0,132.4,132.31,16.5737]
[1720413269892,100.0,132.4,132.32,20.17]
[1720413270185,100.0,132.42,132.33,6.3887]
[1720413270362,100.0,132.42,132.34,20.17]
[1720413271078,100.0,132.44,132.34,20.17]
[1720413271253,100.0,132.41,132.34,20.17]
[1720413272088,100.0,132.43,132.35,16.3918]
[1720413272370,100.0,132.43,132.36,20.0]
[1720413272771,100.0,132.43,132.37,0.17]
[1720413273079,100.0,132.46,132.37,0.17]
[1720413273278,100.0,132.46,132.36,20.0]
[1720413273481,100.0,132.43,132.36,20.0]
[1720413273849,100.0,132.45,132.36,20.0]
[1720413274057,100.0,132.45,132.37,0.17]
[1720413275359,6.6072,132.49,132.37,0.17]
[1720413275360,100.0,132.47,132.37,0.17]
[1720413276074,100.0,132.47,132.38,22.759]
[1720413276283,100.0,132.45,132.39,20.17]
[1720413276590,100.0,132.45,132.39,20.0]
[1720413276962,100.0,132.45,132.38,22.759]
[1720413277167,100.0,132.43,132.38,22.759]
[1720413278162,100.0,132.46,132.38,22.759]
[1720413278363,100.0,132.43,132.39,20.0]
[1720413278682,100.0,132.45,132.39,20.0]
[1720413279396,100.0,132.48,132.39,20.0]
[1720413279889,100.0,132.48,132.4,0.17]
[1720413281072,0.1,132.49,132.4,0.17]
[1720413282420,0.1,132.49,132.41,16.2654]
[1720413282689,0.1,132.49,132.42,66.2152]
[1720413282859,100.0,132.52,132.43,16.2654]
[1720413283058,100.0,132.52,132.44,36.3937]
[1720413283258,100.0,132.52,132.45,20.17]
[1720413283484,0.8482938,132.54,132.45,20.17]
[1720413283698,0.8482938,132.54,132.46,22.7019]
[1720413283875,0.8482938,132.54,132.48,16.2237]
[1720413284076,0.1,132.59,132.5,6.4782]
[1720413284077,100.0,132.58,132.5,6.4782]
[1720413284279,0.1,132.59,132.52,15.0325]
[1720413284491,100.0,132.66,132.54,6.0714]
[1720413284796,0.8482938,132.67,132.56,15.0325]
[1720413284979,0.8482938,132.67,132.57,20.17]
[1720413285477,0.8482938,132.67,132.58,39.51]
[1720413285666,0.8482938,132.67,132.59,20.17]
[1720413286070,0.3482938,132.67,132.59,20.17]
[1720413286996,100.1,132.69,132.6,21.1039]
[1720413287168,100.1,132.69,132.61,20.17]
[1720413287375,100.0,132.68,132.61,20.0]
[1720413287796,100.0,132.68,132.62,0.17]
[1720413287969,100.0,132.68,132.61,20.0]
[1720413288588,100.0,132.64,132.6,15.0325]
[1720413288793,0.1,132.69,132.6,15.0325]
[1720413288794,100.0,132.66,132.6,15.0325]
[1720413289201,100.0,132.64,132.6,15.0325]
[1720413289597,100.0,132.62,132.6,15.0325]
[1720413289794,100.0,132.62,132.55,12.60685652]
[1720413289795,100.0,132.62,132.55,23.1856]
[1720413290123,100.0,132.62,132.55,16.6145]
[1720413290409,100.0,132.64,132.55,16.6145]
[1720413290600,100.0,132.59,132.51,6.1247]
[1720413291102,100.0,132.61,132.51,6.1247]
[1720413291309,100.0,132.61,132.51,45.6347]
[1720413291483,100.0,132.68,132.51,56.05546396]
[1720413291679,100.0,132.68,132.52,10.42076396]
[1720413291882,100.0,132.66,132.52,10.42076396]
[1720413292186,100.0,132.68,132.55,39.51]
[1720413292500,100.0,132.65,132.57,16.4236]
[1720413292714,0.1,132.69,132.58,20.0]
[1720413292715,100.0,132.63,132.58,20.0]
[1720413293017,0.1,132.69,132.58,20.0]
[1720413293018,100.0,132.61,132.58,20.0]
[1720413293479,0.1,132.69,132.58,20.0]
[1720413293685,100.0,132.64,132.58,20.0]
[1720413294116,100.0,132.62,132.58,20.0]
[1720413295198,100.0,132.67,132.58,20.0]
[1720413296213,0.1,132.69,132.58,20.0]
[1720413296214,100.0,132.64,132.58,20.0]
[1720413296416,100.0,132.62,132.58,20.0]
[1720413296593,100.0,132.64,132.58,20.0]
[1720413297302,100.0,132.67,132.58,20.0]
[1720413297512,100.0,132.66,132.58,20.0]
[1720413298301,100.0,132.66,132.59,0.17]
[1720413298506,100.1,132.69,132.6,6.6591]
[1720413298715,100.0,132.66,132.61,20.0]
[1720413299000,0.1,132.69,132.61,20.0]
[1720413299001,100.0,132.68,132.61,20.0]
[1720413299207,0.1,132.69,132.61,20.0]
[1720413299822,0.1,132.69,132.62,0.17]
[1720413300316,100.0,132.68,132.61,20.0]
[1720413300518,0.1,132.69,132.61,20.0]
[1720413301021,0.1,132.69,132.62,16.4236]
[1720413301318,0.1,132.69,132.63,20.0]
[1720413302791,100.0,132.68,132.63,20.0]
[1720413303215,0.1,132.69,132.63,20.0]
[1720413303216,100.1,132.69,132.63,20.0]
[1720413303599,100.0,132.66,132.62,16.4236]
[1720413303805,0.1,132.69,132.62,16.4236]
[1720413303806,100.0,132.67,132.62,16.4236]
[1720413304007,0.1,132.69,132.62,16.4236]
[1720413304602,100.0,132.67,132.62,16.4236]
[1720413305108,100.0,132.67,132.63,20.0]
[1720413305714,100.0,132.65,132.63,20.0]
[1720413305925,100.0,132.65,132.56,22.77946401]
[1720413305926,100.0,132.65,132.57,15.9023]
[1720413306098,100.0,132.63,132.57,15.9023]
[1720413306517,100.0,132.61,132.57,15.9023]
[1720413306823,100.0,132.63,132.57,15.9023]
[1720413307322,100.0,132.65,132.57,15.9023]
[1720413307922,0.1,132.69,132.57,15.9023]
[1720413308123,100.0,132.68,132.58,0.17]
[1720413308295,0.1,132.69,132.58,20.0]
[1720413308296,100.0,132.66,132.58,20.0]
[1720413308501,100.1,132.69,132.58,20.0]
[1720413308719,100.0,132.67,132.58,20.0]
[1720413308911,100.0,132.67,132.59,0.17]
[1720413309197,0.1,132.69,132.59,22.96]
[1720413309421,0.1,132.69,132.6,20.0]
[1720413309630,0.1,132.69,132.63,15.9023]
[1720413309804,0.1,132.69,132.64,20.17]
[1720413310599,100.0,132.74,132.64,20.17]
[1720413310897,100.0,132.71,132.64,20.17]
[1720413311123,100.0,132.71,132.64,20.0]
[1720413311426,100.0,132.73,132.64,20.0]
[1720413311600,100.0,132.73,132.65,0.17]
[1720413311796,100.0,132.71,132.64,20.0]
[1720413312619,100.0,132.69,132.64,20.0]
[1720413313220,21.4295,132.78,132.64,20.0]
[1720413313221,100.0,132.67,132.64,20.0]
[1720413313396,100.0,132.67,132.58,63.4266]
[1720413313605,100.0,132.65,132.58,15.5366]
[1720413314599,100.0,132.69,132.59,47.89]
[1720413314799,100.0,132.74,132.6,20.0]
[1720413315000,100.0,132.74,132.63,47.89]
[1720413315199,100.0,132.74,132.65,21.6433]
[1720413315423,100.0,132.74,132.66,20.0]
[1720413316197,100.0,132.72,132.66,20.0]
[1720413317329,100.0,132.7,132.65,15.5748]
[1720413318004,100.0,132.68,132.65,15.5748]
[1720413318200,100.0,132.66,132.6,15.9884]
[1720413318424,100.0,132.7,132.6,15.9884]
[1720413318840,100.0,132.68,132.6,15.9884]
[1720413319219,100.0,132.66,132.6,15.9884]
[1720413319415,100.0,132.66,132.61,20.0]
[1720413319732,100.0,132.64,132.61,20.0]
[1720413320034,100.0,132.67,132.6,15.9884]
[1720413320419,100.0,132.63,132.6,15.9884]
[1720413320820,100.0,132.63,132.57,6.0946]
[1720413321030,100.0,132.61,132.56,15.1906]
[1720413321439,100.0,132.59,132.56,15.1906]
[1720413321638,100.0,132.61,132.52,6.3587]
[1720413321842,100.0,132.61,132.52,45.4987]
[1720413322145,6.5115,132.7,132.52,45.4987]
[1720413322146,100.0,132.64,132.52,45.4987]
[1720413322327,100.0,132.64,132.52,55.97001952]
[1720413322526,100.0,132.61,132.52,55.97001952]
[1720413322723,100.0,132.59,132.52,6.3587]
[1720413322917,100.0,132.59,132.51,15.9801]
[1720413323320,100.0,132.61,132.51,15.9801]
[1720413323521,100.0,132.62,132.51,15.9801]
[1720413324333,100.0,132.62,132.52,0.17]
[1720413324530,100.0,132.66,132.52,0.17]
[1720413324738,100.0,132.66,132.54,39.14]
[1720413324922,100.0,132.66,132.55,20.17]
[1720413325318,100.0,132.66,132.56,7.9392472]
[1720413325522,100.0,132.68,132.57,20.17]
[1720413325738,100.0,132.65,132.57,20.17]
[1720413326046,100.0,132.68,132.57,20.17]
[1720413326220,100.0,132.7,132.58,54.6614]
[1720413326415,100.0,132.7,132.59,21.67664313]
[1720413326644,100.0,132.7,132.59,68.03]
[1720413327454,100.0,132.66,132.59,68.03]
[1720413327740,100.0,132.7,132.59,68.03]
[1720413328839,100.0,132.66,132.59,67.86]
[1720413329152,100.0,132.67,132.59,20.0]
[1720413330146,100.0,132.7,132.59,20.0]
[1720413330739,100.0,132.67,132.59,20.0]
[1720413331043,100.0,132.65,132.59,20.0]
[1720413331724,100.0,132.7,132.59,20.0]
[1720413331935,100.0,132.7,132.6,0.17]
[1720413332138,100.0,132.68,132.59,20.0]
[1720413332335,100.0,132.66,132.59,20.0]
[1720413333047,100.0,132.68,132.59,20.0]
[1720413333235,100.0,132.7,132.6,0.17]
[1720413333834,100.0,132.68,132.6,0.17]
[1720413334030,100.0,132.68,132.59,20.0]
[1720413334235,100.0,132.66,132.59,20.0]
[1720413334754,100.0,132.7,132.59,20.0]
[1720413334979,100.0,132.7,132.6,0.17]
[1720413335130,100.0,132.66,132.59,20.0]
[1720413336137,100.0,132.7,132.59,20.0]
[1720413336642,100.0,132.68,132.59,20.0]
[1720413337162,100.0,132.66,132.59,20.0]
[1720413337369,100.0,132.66,132.58,15.6914]
[1720413337370,100.0,132.64,132.58,15.5214]
[1720413337548,21.3754,132.75,132.58,15.5214]
[1720413337549,100.0,132.66,132.58,15.5214]
[1720413337747,100.0,132.68,132.58,15.5214]
[1720413338068,100.0,132.67,132.58,15.5214]
[1720413339061,100.0,132.7,132.59,0.17]
[1720413339439,100.0,132.7,132.59,20.17]
[1720413339956,100.0,132.67,132.59,20.17]
[1720413340950,100.0,132.67,132.59,20.0]
[1720413341475,100.0,132.7,132.59,20.0]
[1720413342365,100.0,132.7,132.6,0.17]
[1720413342870,100.0,132.7,132.61,22.0824]
[1720413343073,100.0,132.7,132.62,20.17]
[1720413343249,100.0,132.72,132.62,20.17]
[1720413344475,100.0,132.67,132.62,20.0]
[1720413344661,100.0,132.67,132.61,22.0824]
[1720413344857,100.0,132.65,132.61,22.0824]
[1720413345852,100.0,132.69,132.61,22.0824]
[1720413346250,100.0,132.73,132.61,22.0824]
[1720413346447,100.0,132.73,132.62,0.17]
[1720413346850,100.0,132.73,132.62,20.17]
[1720413348649,100.0,132.73,132.62,59.3]
[1720413349458,100.0,132.75,132.64,22.0294]
[1720413349683,100.0,132.75,132.65,20.17]
[1720413350967,100.0,132.75,132.66,15.5776]
[1720413351158,100.0,132.75,132.67,20.17]
[1720413352370,100.0,132.75,132.68,6.5918]
[1720413352571,100.0,132.75,132.69,20.17]
[1720413353475,100.0,132.76,132.69,20.17]
[1720413354587,100.0,132.74,132.68,6.5918]
[1720413354965,100.0,132.76,132.68,6.5918]
[1720413355756,100.0,132.76,132.69,20.17]
[1720413357451,100.0,132.76,132.69,20.0]